fUST/lending_fUST_20250810
["ID","MTS","AMOUNT","RATE_DAILY","PERIOD"]
[378366874,1754839851293,-421.22,0.00021761,2]
[378366876,1754839851302,-460.0,0.00021761,2]
[378366878,1754839851311,-460.0,0.00021761,2]
[378366880,1754839851321,-480.0,0.00021777,2]
[378366882,1754839851330,-151.0,0.000218,4]
[378366884,1754839851339,-151.0,0.000218,3]
[378366886,1754839851349,-1838.54,0.00021805,2]
[378366888,1754839851358,-1086.36,0.00021805,2]
[378366890,1754839851368,-517.01,0.00021805,2]
[378366892,1754839851380,-983.42,0.00021806,2]
[378366894,1754839851389,-720.29,0.00021806,2]
[378366896,1754839851399,-460.0,0.00021806,2]
[378366897,1754839851408,-460.0,0.00021806,2]
[378366899,1754839851417,-1177.54,0.00021806,2]
[378366901,1754839851426,-460.0,0.00021806,2]
[378366903,1754839851436,-460.0,0.00021806,2]
[378366905,1754839851445,-381.14,0.00021807,2]
[378366907,1754839851454,-460.0,0.00021807,2]
[378366909,1754839851464,-410.37683111,0.00021807,2]
[378366911,1754839851472,-460.0,0.00021807,2]
[378366913,1754839851482,-2749.4,0.00021807,2]
[378366915,1754839851491,-583.48,0.00021807,2]
[378366917,1754839851500,-581.17,0.00021808,2]
[378366919,1754839851510,-621.59,0.00021808,2]
[378366921,1754839851520,-927.13,0.00021808,2]
[378366923,1754839851530,-900.31,0.00021808,2]
[378366925,1754839851539,-460.0,0.00021808,2]
[378366927,1754839851549,-861.26,0.00021808,2]
[378366929,1754839851559,-1053.41,0.00021809,2]
[378366931,1754839851569,-2000.0,0.00021816,2]
[378366933,1754839851579,-1500.0,0.00021833,2]
[378366935,1754839851589,-1500.0,0.00021833,2]
[378366937,1754839851599,-180.0,0.00021841,2]
[378366939,1754839851608,-7761.28761984,0.00021872,2]
[378366941,1754839851618,-172.00826619,0.00021873,2]
[378366943,1754839851627,-308.0,0.000219,2]
[378366945,1754839851637,-468.00556148,0.00021909,2]
[378366947,1754839851646,-1872.02224594,0.00021909,2]
[378366949,1754839851655,-4212.05005336,0.00021909,2]
[378366952,1754839851675,-7480.60089477,0.00021909,2]
[378366954,1754839851686,-623.35065804,0.00021909,2]
[378366956,1754839851696,-2493.40263217,0.00021909,2]
[378366958,1754839851706,-5604.54576646,0.00021909,2]
[378366960,1754839851716,-151.0,0.00021917,2]
[378366963,1754839851726,-500.0,0.00021917,2]
[378366965,1754839851736,-500.0,0.00021917,2]
[378366967,1754839851746,-500.0,0.00021917,2]
[378366969,1754839851755,-500.0,0.00021917,2]
[378366971,1754839851765,-500.0,0.00021917,2]
[378366973,1754839851775,-500.0,0.00021917,2]
[378366975,1754839851785,-500.0,0.00021917,2]
[378366977,1754839851795,-200.0,0.00021918,2]
[378366979,1754839851804,-172.16558578,0.00021918,2]
[378366981,1754839851814,-900.31,0.00021972,2]
[378366983,1754839851824,-500.0,0.00021973,2]
[378366985,1754839851833,-501.14487397,0.00021973,2]
[378366987,1754839851843,-500.0,0.00021973,2]
[378366989,1754839851853,-500.0,0.00021973,2]
[378366991,1754839851862,-500.0,0.00021973,2]
[378366993,1754839851872,-500.0,0.00021973,2]
[378366995,1754839851882,-500.0,0.00021973,2]
[378366997,1754839851893,-500.0,0.00021973,2]
[378366999,1754839851902,-500.0,0.00021973,2]
[378367001,1754839851911,-150.0,0.00021973,2]
[378367003,1754839851922,-500.0,0.00021973,2]
[378367005,1754839851933,-500.0,0.00021973,2]
[378367007,1754839851942,-500.0,0.00021973,2]
[378367009,1754839851953,-500.0,0.00021973,2]
[378367011,1754839851962,-500.0,0.00021973,2]
[378367013,1754839851972,-533.9224792,0.00021973,2]
[378367015,1754839851982,-500.0,0.00021973,2]
[378367017,1754839851992,-150.0,0.00021973,2]
[378367019,1754839852001,-500.0,0.00021973,2]
[378367021,1754839852011,-500.0,0.00021973,2]
[378367023,1754839852020,-500.0,0.00021973,2]
[378367025,1754839852030,-500.0,0.00021973,2]
[378367027,1754839852039,-500.0,0.00021973,2]
[378367029,1754839852049,-151.0,0.00021973,7]
[378367031,1754839852058,-260.0,0.00021977,2]
[378367033,1754839852068,-460.0,0.00021979,2]
[378367035,1754839852078,-275332.78316308,0.00021998,2]
[378367037,1754839852087,-151.0,0.00021998,7]
[378367039,1754839852097,-341.083336,0.00021998,7]
[378367041,1754839852106,-341.083336,0.00021998,7]
[378367043,1754839852116,-151.0,0.00021998,7]
[378367045,1754839852125,-900.31,0.00021999,2]
[378367047,1754839852135,-900.31,0.00021999,2]
[378367049,1754839852145,-900.31,0.00021999,2]
[378367051,1754839852154,-900.31,0.00021999,2]
[378367053,1754839852163,-900.31,0.00021999,2]
[378367055,1754839852174,-900.31,0.00021999,2]
[378367057,1754839852184,-75091.76,0.00022,7]
[378367059,1754839852193,-9787.89,0.00022,7]
[378367061,1754839852204,-44236.47,0.00022,2]
[378367063,1754839852213,-151.0,0.00022,7]
[378367065,1754839852223,-151.0,0.00022,7]
[378367067,1754839852233,-151.0,0.00022,7]
[378367069,1754839852242,-151.0,0.00022,7]
[378367071,1754839852252,-151.0,0.00022,7]
[378367073,1754839852261,-151.0,0.00022,7]
[378367075,1754839852270,-151.0,0.00022,7]
[378367078,1754839852283,-151.0,0.00022,7]
[378367080,1754839852294,-151.0,0.00022,7]
[378367082,1754839852303,-151.0,0.00022,7]
[378367084,1754839852313,-229.952662,0.00022,7]
[378367086,1754839852323,-229.952662,0.00022,7]
[378367088,1754839852332,-19553.2,0.00022,7]
[378367090,1754839852342,-151.0,0.00022,7]
[378367092,1754839852351,-151.0,0.00022,6]
[378367094,1754839852360,-341.083336,0.00022,7]
[378367096,1754839852370,-341.083336,0.00022,7]
[378367098,1754839852382,-461.62346162,0.00022,7]
[378367100,1754839852391,-185.0,0.00022,2]
[378367102,1754839852401,-312.16666667,0.00022,7]
[378367104,1754839852411,-527.86640923,0.00022,7]
[378367106,1754839852420,-215.44987349,0.00022,7]
[378367108,1754839852430,-12668.57659669,0.00022,7]
[378367110,1754839852439,-151.0,0.00022,7]
[378367112,1754839852449,-1715.66113799,0.00022,2]
[378367114,1754839852459,-344.75,0.00022,2]
[378367116,1754839852469,-2410.57,0.00022,2]
[378367118,1754839852478,-167.0,0.00022,2]
[378367120,1754839852488,-460.0,0.00022035,2]
[378367122,1754839852497,-1240.04,0.00022035,2]
[378367124,1754839852507,-1611.0,0.00022035,2]
[378367126,1754839852516,-460.0,0.00022035,2]
[378367128,1754839852526,-460.0,0.00022035,2]
[378367130,1754839852535,-1838.54,0.00022079,2]
[378367132,1754839852545,-1086.36,0.00022079,2]
[378367134,1754839852555,-517.01,0.00022079,2]
[378367136,1754839852565,-983.42,0.0002208,2]
[378367138,1754839852575,-720.29,0.0002208,2]
[378367140,1754839852585,-511.8,0.0002208,2]
[378367142,1754839852595,-460.0,0.0002208,2]
[378367144,1754839852605,-500.0,0.0002208,2]
[378367146,1754839852614,-1177.54,0.0002208,2]
[378367148,1754839852623,-460.0,0.0002208,2]
[378367150,1754839852633,-309.7597013,0.0002208,2]
[378367152,1754839852643,-460.0,0.00022081,2]
[378367154,1754839852652,-460.0,0.00022081,2]
[378367156,1754839852663,-2749.4,0.00022081,2]
[378367158,1754839852672,-583.48,0.00022081,2]
[378367160,1754839852683,-581.17,0.00022082,2]
[378367162,1754839852693,-621.59,0.00022082,2]
[378367164,1754839852703,-927.13,0.00022082,2]
[378367166,1754839852712,-460.0,0.00022082,2]
[378367168,1754839852721,-861.26,0.00022082,2]
[378367170,1754839852730,-151.0,0.00022083,7]
[378367173,1754839852741,-1053.41,0.00022083,2]
[378367175,1754839852750,-151.0,0.00022084,7]
[378367177,1754839852760,-151.0,0.00022084,7]
[378367179,1754839852770,-151.0,0.000221,5]
[378367181,1754839852779,-195.69,0.00022102,2]
[378367183,1754839852789,-167.0,0.00022192,7]
[378367185,1754839852798,-460.0,0.00022253,2]
[378367187,1754839852808,-151.0,0.000223,9]
[378367189,1754839852817,-228.33,0.00022309,2]
[378367191,1754839852827,-1240.04,0.00022309,2]
[378367193,1754839852836,-1611.0,0.00022309,2]
[378367195,1754839852846,-460.0,0.00022309,2]
[378367197,1754839852855,-1838.54,0.00022353,2]
[378367199,1754839852864,-1086.36,0.00022353,2]
[378367201,1754839852874,-517.01,0.00022353,2]
[378367203,1754839852884,-983.42,0.00022354,2]
[378367205,1754839852893,-720.29,0.00022354,2]
[378367207,1754839852902,-460.0,0.00022354,2]
[378367209,1754839852912,-500.0,0.00022354,2]
[378367211,1754839852921,-1177.54,0.00022354,2]
[378367212,1754839852930,-460.0,0.00022354,2]
[378367213,1754839852939,-460.0,0.00022355,2]
[378367214,1754839852948,-2749.4,0.00022355,2]
[378367215,1754839852958,-583.48,0.00022355,2]
[378367216,1754839852967,-581.17,0.00022356,2]
[378367217,1754839853092,-621.59,0.00022356,2]
[378367218,1754839853101,-927.13,0.00022356,2]
[378367219,1754839853110,-460.0,0.00022356,2]
[378367220,1754839853120,-151.0,0.00022357,7]
[378367221,1754839853130,-1053.41,0.00022357,2]
[378367222,1754839853139,-151.0,0.00022357,7]
[378367223,1754839853148,-151.0,0.00022357,7]
[378367224,1754839853157,-151.0,0.00022357,7]
[378367225,1754839853167,-220.94969,0.00022357,7]
[378367226,1754839853176,-151.0,0.00022357,7]
[378367227,1754839853185,-151.0,0.00022357,7]
[378367228,1754839853195,-1000.0,0.00022364,2]
[378367229,1754839853204,-2000.0,0.00022381,2]
[378367230,1754839853214,-2000.0,0.00022381,2]
[378367231,1754839853224,-151.0,0.000224,10]
[378367232,1754839853234,-3370.0,0.00022479,2]
[378367233,1754839853245,-510.14989155,0.00022521,2]
[378367234,1754839853254,-1000.0,0.00022521,2]
[378367235,1754839853264,-995.62790489,0.00022521,2]
[378367236,1754839853275,-512.33653393,0.00022521,2]
[378367238,1754839853285,-1000.0,0.00022521,2]
[378367240,1754839853294,-300.0,0.00022521,2]
[378367242,1754839853304,-1000.0,0.00022521,2]
[378367244,1754839853313,-1004.28008434,0.00022521,2]
[378367246,1754839853322,-500.0,0.00022521,2]
[378367248,1754839853332,-500.0,0.00022521,2]
[378367250,1754839853342,-250.0,0.00022521,2]
[378367252,1754839853351,-1000.0,0.00022521,2]
[378367254,1754839853361,-1000.0,0.00022521,2]
[378367256,1754839853370,-1000.0,0.00022521,2]
[378367258,1754839853381,-1000.0,0.00022521,2]
[378367260,1754839853391,-1000.0,0.00022521,2]
[378367262,1754839853401,-360.0,0.00022524,2]
[378367264,1754839853410,-460.0,0.00022527,2]
[378367266,1754839853420,-153.0,0.00022529,2]
[378367268,1754839853430,-153.0,0.00022529,2]
[378367270,1754839853440,-1240.04,0.00022583,2]
[378367272,1754839853449,-1611.0,0.00022583,2]
[378367274,1754839853460,-460.0,0.00022583,2]
[378367276,1754839853470,-151.0,0.000226,9]
[378367278,1754839853480,-151.0,0.000226,10]
[378367280,1754839853489,-353.72874864,0.00022603,2]
[378367282,1754839853499,-211.321608,0.00022621,7]
[378367284,1754839853509,-1838.54,0.00022627,2]
[378367286,1754839853520,-1086.36,0.00022627,2]
[378367288,1754839853530,-517.01,0.00022627,2]
[378367290,1754839853539,-983.42,0.00022628,2]
[378367292,1754839853549,-720.29,0.00022628,2]
[378367294,1754839853558,-460.0,0.00022628,2]
[378367296,1754839853567,-500.0,0.00022628,2]
[378367298,1754839853577,-1177.54,0.00022628,2]
[378367300,1754839853586,-460.0,0.00022628,2]
[378367302,1754839853597,-460.0,0.00022629,2]
[378367305,1754839853617,-2749.4,0.00022629,2]
[378367307,1754839853627,-583.48,0.00022629,2]
[378367309,1754839853638,-581.17,0.0002263,2]
[378367311,1754839853648,-621.59,0.0002263,2]
[378367313,1754839853658,-927.13,0.0002263,2]
[378367315,1754839853667,-323.23,0.0002263,2]
[378367317,1754839853677,-151.0,0.00022631,7]
[378367319,1754839853687,-229.952662,0.00022631,7]
[378367321,1754839853697,-229.952662,0.00022631,7]
[378367323,1754839853707,-151.0,0.00022631,7]
[378367326,1754839853716,-1053.41,0.00022631,2]
[378367328,1754839853726,-151.0,0.00022633,7]
[378367330,1754839853735,-269.413332,0.00022633,7]
[378367332,1754839853745,-151.0,0.00022733,7]
[378367334,1754839853758,-237.829517,0.00022733,7]
[378367336,1754839853768,-1000.0,0.0002278,2]
[378367338,1754839853778,-195.69,0.0002279,2]
[378367340,1754839853788,-460.0,0.00022801,2]
[378367342,1754839853799,-1240.04,0.00022857,2]
[378367344,1754839853809,-1611.0,0.00022857,2]
[378367346,1754839853818,-460.0,0.00022857,2]
[378367348,1754839853827,-151.0,0.000229,10]
[378367350,1754839853837,-151.0,0.000229,7]
[378367352,1754839853846,-1838.54,0.00022901,2]
[378367354,1754839853856,-1086.36,0.00022901,2]
[378367356,1754839853866,-517.01,0.00022901,2]
[378367358,1754839853876,-983.42,0.00022902,2]
[378367360,1754839853885,-720.29,0.00022902,2]
[378367362,1754839853895,-404.38618077,0.00022902,2]
[378367364,1754839853904,-500.0,0.00022902,2]
[378367366,1754839853914,-1177.54,0.00022902,2]
[378367368,1754839853923,-460.0,0.00022902,2]
[378367370,1754839853932,-460.0,0.00022903,2]
[378367372,1754839853942,-2749.4,0.00022903,2]
[378367374,1754839853951,-583.48,0.00022903,2]
[378367376,1754839853961,-341.083336,0.00022904,7]
[378367378,1754839853970,-341.083336,0.00022904,7]
[378367380,1754839853980,-581.17,0.00022904,2]
[378367382,1754839853990,-621.59,0.00022904,2]
[378367384,1754839853999,-927.13,0.00022904,2]
[378367386,1754839854008,-1053.41,0.00022905,2]
[378367388,1754839854018,-151.0,0.00022905,7]
[378367390,1754839854027,-1555.93351593,0.00022929,2]
[378367392,1754839854036,-2500.0,0.00022929,2]
[378367394,1754839854045,-12376.39520725,0.00022968,2]
[378367396,1754839854055,-151.0,0.00022991,7]
[378367398,1754839854065,-151.0,0.00022991,7]
[378367400,1754839854075,-152.539676,0.00022991,7]
[378367402,1754839854085,-151.0,0.00022991,7]
[378367404,1754839854094,-151.0,0.00022991,7]
[378367406,1754839854104,-151.0,0.00022991,7]
[378367408,1754839854113,-151.0,0.00022991,7]
[378367410,1754839854122,-151.0,0.00022991,7]
[378367412,1754839854133,-304.580086,0.00022991,7]
[378367414,1754839854142,-151.0,0.00022991,7]
[378367416,1754839854152,-304.580086,0.00022991,7]
[378367418,1754839854162,-151.0,0.00022991,7]
[378367420,1754839854172,-151.0,0.00022991,7]
[378367422,1754839854181,-295.47814268,0.00022991,7]
[378367424,1754839854191,-151.0,0.00022991,7]
[378367426,1754839854200,-151.0,0.00022991,7]
[378367428,1754839854210,-151.0,0.00022991,7]
[378367430,1754839854219,-151.0,0.00022991,7]
[378367432,1754839854228,-151.0,0.00022991,7]
[378367434,1754839854238,-151.0,0.00022991,7]
[378367436,1754839854247,-151.0,0.00022991,7]
[378367438,1754839854256,-151.0,0.00022991,7]
[378367440,1754839854266,-196.677394,0.00022991,7]
[378367442,1754839854275,-196.677394,0.00022991,7]
[378367444,1754839854284,-151.0,0.00022991,7]
[378367446,1754839854293,-151.0,0.00022991,7]
[378367448,1754839854303,-356.079228,0.00022991,7]
[378367450,1754839854312,-356.079228,0.00022991,7]
[378367452,1754839854322,-151.0,0.00022991,7]
[378367453,1754839854332,-151.0,0.00022991,7]
[378367456,1754839854341,-151.0,0.00022991,7]
[378367457,1754839854351,-151.0,0.00022991,7]
[378367460,1754839854361,-152.89904,0.00022991,7]
[378367461,1754839854370,-318.247902,0.00022991,7]
[378367463,1754839854381,-318.247902,0.00022991,7]
[378367465,1754839854392,-151.0,0.00022991,7]
[378367467,1754839854402,-250.0,0.00023,2]
[378367469,1754839854411,-88050.07644049,0.00023,5]
[378367472,1754839854420,-1359.7280243,0.00023,2]
[378367474,1754839854431,-151.0,0.00023,10]
[378367476,1754839854441,-151.0,0.00023,7]
[378367478,1754839854451,-151.0,0.00023,7]
[378367480,1754839854461,-151.0,0.00023,7]
[378367482,1754839854470,-160.0,0.00023,2]
[378367484,1754839854480,-151.0,0.00023,7]
[378367486,1754839854489,-151.0,0.00023,7]
[378367488,1754839854498,-193.93783112,0.00023,2]
[378367490,1754839854508,-1340.43618727,0.00023,2]
[378367492,1754839854517,-216.64838636,0.00023,3]
[378367494,1754839854527,-160.0,0.00023,3]
[378367496,1754839854537,-160.0,0.00023,3]
[378367498,1754839854546,-200.0,0.00023009,15]
[378367500,1754839854557,-200.0,0.00023009,15]
[378367501,1754839854566,-300.0,0.00023009,15]
[378367504,1754839854576,-151.0,0.00023011,2]
[378367506,1754839854585,-300.0,0.00023011,2]
[378367508,1754839854595,-151.0,0.00023011,2]
[378367509,1754839854604,-151.0,0.00023011,2]
[378367512,1754839854615,-151.0,0.00023011,2]
[378367513,1754839854625,-500.0,0.00023011,2]
[378367515,1754839854634,-151.0,0.00023011,2]
[378367517,1754839854644,-155.50084956,0.00023011,2]
[378367520,1754839854653,-151.0,0.00023011,2]
[378367522,1754839854666,-151.0,0.00023011,2]
[378367524,1754839854675,-151.0,0.00023011,2]
[378367526,1754839854685,-151.0,0.00023011,2]
[378367528,1754839854695,-151.0,0.00023011,2]
[378367530,1754839854705,-151.0,0.00023011,2]
[378367532,1754839854714,-151.0,0.00023011,2]
[378367534,1754839854724,-2183.31810187,0.00023011,2]
[378367536,1754839854734,-18502.69577858,0.00023011,2]
[378367538,1754839854744,-151.0,0.00023011,2]
[378367540,1754839854753,-151.0,0.00023011,2]
[378367542,1754839854763,-250.0,0.00023011,2]
[378367544,1754839854774,-151.0,0.00023011,2]
[378367546,1754839854784,-151.0,0.00023011,2]
[378367548,1754839854794,-151.0,0.00023011,2]
[378367550,1754839854804,-151.0,0.00023011,2]
[378367552,1754839854816,-151.0,0.00023011,2]
[378367554,1754839854825,-151.0,0.00023011,2]
[378367556,1754839854835,-151.41275615,0.00023011,2]
[378367558,1754839854844,-185.0,0.00023014,7]
[378367560,1754839854854,-167.0,0.00023014,7]
[378367562,1754839854864,-676.0,0.00023048,2]
[378367565,1754839854874,-341.083336,0.00023048,7]
[378367567,1754839854883,-341.083336,0.00023048,7]
[378367569,1754839854893,-151.0,0.00023062,7]
[378367571,1754839854904,-2347.87260389,0.00023066,2]
[378367573,1754839854914,-151.0,0.00023068,7]
[378367586,1754839855036,-1500.0,0.00023068,2]
[378367588,1754839855047,-1500.0,0.00023068,2]
[378367591,1754839855057,-450.0,0.00023068,2]
[378367593,1754839855067,-1000.0,0.00023068,2]
[378367595,1754839855076,-350.0,0.00023068,2]
[378367596,1754839855085,-1500.0,0.00023068,2]
[378367599,1754839855094,-1500.0,0.00023068,2]
[378367601,1754839855104,-1500.0,0.00023068,2]
[378367603,1754839855114,-202.85191842,0.00023068,2]
[378367604,1754839855123,-1500.0,0.00023068,2]
[378367606,1754839855132,-460.0,0.00023072,2]
[378367608,1754839855142,-460.0,0.00023075,2]
[378367610,1754839855151,-1240.04,0.00023131,2]
[378367612,1754839855160,-1611.0,0.00023131,2]
[378367615,1754839855170,-460.0,0.00023131,2]
[378367616,1754839855179,-150.0,0.00023173,2]
[378367619,1754839855189,-150.0,0.00023173,2]
[378367621,1754839855198,-1838.54,0.00023175,2]
[378367623,1754839855208,-1086.36,0.00023175,2]
[378367625,1754839855218,-517.01,0.00023175,2]
[378367626,1754839855227,-151.0,0.00023176,7]
[378367629,1754839855237,-152.357585,0.00023176,7]
[378367631,1754839855247,-151.0,0.00023176,7]
[378367632,1754839855256,-983.42,0.00023176,2]
[378367634,1754839855265,-720.29,0.00023176,2]
[378367636,1754839855276,-151.0,0.00023176,7]
[378367638,1754839855285,-152.940225,0.00023176,7]
[378367640,1754839855294,-500.0,0.00023176,2]
[378367643,1754839855304,-1177.54,0.00023176,2]
[378367645,1754839855313,-460.0,0.00023176,2]
[378367646,1754839855323,-318.247902,0.00023176,7]
[378367649,1754839855332,-318.247902,0.00023176,7]
[378367650,1754839855341,-151.0,0.00023176,7]
[378367652,1754839855351,-151.0,0.00023177,7]
[378367654,1754839855360,-160.378559,0.00023177,7]
[378367656,1754839855370,-460.0,0.00023177,2]
[378367658,1754839855384,-2749.4,0.00023177,2]
[378367660,1754839855394,-583.48,0.00023177,2]
[378367662,1754839855404,-581.17,0.00023178,2]
[378367664,1754839855414,-621.59,0.00023178,2]
[378367667,1754839855424,-927.13,0.00023178,2]
[378367668,1754839855434,-1053.41,0.00023179,2]
[378367670,1754839855444,-2410.57,0.0002319,2]
[378367672,1754839855454,-75091.76,0.000232,7]
[378367674,1754839855464,-9787.89,0.000232,7]
[378367676,1754839855474,-44236.47,0.000232,2]
[378367678,1754839855483,-151.0,0.000232,7]
[378367680,1754839855492,-151.0,0.000232,7]
[378367682,1754839855501,-151.0,0.000232,7]
[378367684,1754839855511,-152.039706,0.000232,7]
[378367686,1754839855521,-151.0,0.000232,7]
[378367688,1754839855530,-151.0,0.000232,7]
[378367690,1754839855540,-151.0,0.000232,7]
[378367692,1754839855549,-151.0,0.000232,7]
[378367694,1754839855559,-151.0,0.000232,7]
[378367697,1754839855569,-229.952662,0.000232,7]
[378367699,1754839855578,-229.952662,0.000232,7]
[378367701,1754839855590,-151.0,0.000232,7]
[378367702,1754839855600,-282.80798,0.000232,7]
[378367704,1754839855611,-151.0,0.000232,7]
[378367706,1754839855621,-153.913521,0.000232,7]
[378367708,1754839855630,-151.0,0.000232,7]
[378367710,1754839855639,-151.0,0.000232,7]
[378367713,1754839855649,-151.0,0.000232,7]
[378367715,1754839855659,-304.580086,0.000232,7]
[378367716,1754839855669,-151.0,0.000232,7]
[378367718,1754839855679,-304.580086,0.000232,7]
[378367720,1754839855688,-151.0,0.000232,7]
[378367722,1754839855699,-151.0,0.000232,7]
[378367724,1754839855708,-153.263495,0.000232,7]
[378367726,1754839855718,-151.0,0.000232,7]
[378367728,1754839855727,-151.0,0.000232,7]
[378367730,1754839855736,-151.0,0.000232,10]
[378367732,1754839855746,-151.0,0.000232,7]
[378367734,1754839855755,-151.0,0.000232,7]
[378367736,1754839855764,-151.0,0.000232,7]
[378367738,1754839855774,-196.677394,0.000232,7]
[378367740,1754839855783,-196.677394,0.000232,7]
[378367742,1754839855792,-151.0,0.000232,7]
[378367744,1754839855802,-356.079228,0.000232,7]
[378367746,1754839855811,-356.079228,0.000232,7]
[378367748,1754839855821,-151.0,0.000232,5]
[378367750,1754839855831,-151.0,0.000232,7]
[378367752,1754839855840,-151.0,0.000232,7]
[378367754,1754839855849,-151.0,0.000232,7]
[378367756,1754839855859,-151.0,0.000232,7]
[378367758,1754839855868,-151.0,0.000232,7]
[378367760,1754839855877,-151.0,0.000232,7]
[378367762,1754839855886,-151.0,0.000232,7]
[378367764,1754839855895,-341.083336,0.000232,7]
[378367766,1754839855905,-341.083336,0.000232,7]
[378367768,1754839855915,-318.247902,0.000232,7]
[378367770,1754839855924,-318.247902,0.000232,7]
[378367772,1754839855933,-152.537099,0.000232,7]
[378367774,1754839855943,-151.0,0.000232,7]
[378367776,1754839855951,-842.66305328,0.0002321,2]
[378367778,1754839855961,-3367.2815609,0.0002321,2]
[378367780,1754839855971,-252.91603327,0.00023234,2]
[378367782,1754839855980,-151.0,0.00023265,7]
[378367784,1754839855989,-151.0,0.00023288,7]
[378367786,1754839855998,-500.0,0.00023288,2]
[378367788,1754839856008,-460.0,0.00023349,2]
[378367790,1754839856017,-19553.2,0.000234,7]
[378367792,1754839856027,-1240.04,0.00023405,2]
[378367794,1754839856036,-1611.0,0.00023405,2]
[378367796,1754839856045,-460.0,0.00023405,2]
[378367798,1754839856054,-1068.9,0.00023406,2]
[378367800,1754839856064,-250.0,0.00023424,2]
[378367802,1754839856073,-202.98714517,0.00023443,3]
[378367804,1754839856082,-1838.54,0.00023449,2]
[378367806,1754839856092,-1086.36,0.00023449,2]
[378367808,1754839856101,-517.01,0.00023449,2]
[378367810,1754839856111,-983.42,0.0002345,2]
[378367812,1754839856120,-720.29,0.0002345,2]
[378367814,1754839856130,-500.0,0.0002345,2]
[378367816,1754839856139,-1177.54,0.0002345,2]
[378367818,1754839856149,-460.0,0.0002345,2]
[378367820,1754839856158,-300.31866508,0.00023451,2]
[378367822,1754839856168,-2749.4,0.00023451,2]
[378367824,1754839856177,-583.48,0.00023451,2]
[378367826,1754839856187,-581.17,0.00023452,2]
[378367828,1754839856196,-621.59,0.00023452,2]
[378367830,1754839856205,-927.13,0.00023452,2]
[378367832,1754839856214,-1053.41,0.00023453,2]
[378367834,1754839856223,-2562.71469188,0.00023477,2]
[378367836,1754839856233,-151.0,0.000235,7]
[378367838,1754839856242,-1000.0,0.000235,2]
[378367840,1754839856251,-166.065596,0.00023601,2]
[378367842,1754839856260,-163.07,0.00023609,2]
[378367844,1754839856269,-1504.57187711,0.00023616,2]
[378367846,1754839856278,-1756.82829048,0.00023616,2]
[378367848,1754839856288,-600.0,0.00023616,2]
[378367850,1754839856298,-450.0,0.00023616,2]
[378367852,1754839856308,-508.65772578,0.00023616,2]
[378367854,1754839856317,-2000.0,0.00023616,2]
[378367856,1754839856326,-2000.0,0.00023616,2]
[378367858,1754839856335,-2000.0,0.00023616,2]
[378367860,1754839856344,-560.0,0.0002362,2]
[378367862,1754839856354,-460.0,0.00023623,2]
[378367864,1754839856364,-168.0,0.00023631,2]